Cogmind - Beta 10.2 @@@ ROGUE MODE // 2021.11.07 @ 17:48:07 Player: Geraldon Result: Destroyed by G-50 Soldier with Heavy Laser Performance ------------- Evolutions (1) 500 Regions Visited (6) 1200 Robots Destroyed (88) 440 Value Destroyed (2133) 2133 Prototype IDs (37) 740 Alien Tech Used (0) 0 Bonus (-657) -657 TOTAL SCORE: 4356 Bonus ------- High Alert Combat Kills 304 Follower Combat Kills 102 Aligned with FarCom 300 Friendly Fire -1363 Cogmind --------- Core Integrity 0/400 Matter 30/300 Energy 275/275 System Corruption 5% Temperature Cool (51) Movement Treading (180) Ox1 Location -8/Mines Parts ------- > --- POWER (1) -------- Deuterium Engine > --- PROPULSION (3) --- Light Treads Light Treads Light Treads > --- UTILITY (3) ------ Heat Sink Large Storage Unit High-capacity Storage Unit > --- WEAPON (2) ------- YI-UF0's Doublenader > --- INVENTORY (18) --- Improved Ion Engine Deuterium Engine Light Treads Light Treads Power Amplifier Heat Sink Large Storage Unit Large Storage Unit High-capacity Storage Unit Hardened Light Armor Plating Improved Medium Laser Firepult YOLO Cannon Rocket Launcher Improved Datajack Peak State ------------ > --- POWER ------------ Deuterium Engine > --- PROPULSION ------- Light Treads Light Treads Light Treads > --- UTILITY ---------- Heat Sink Large Storage Unit High-capacity Storage Unit > --- WEAPON ----------- YI-UF0's Doublenader Improved Datajack > --- INVENTORY -------- Improved Ion Engine Deuterium Engine Light Treads Light Treads Power Amplifier Heat Sink Large Storage Unit Large Storage Unit High-capacity Storage Unit Hardened Light Armor Plating Improved Medium Laser Advanced Beam Cannon Firepult YOLO Cannon Rocket Launcher [Rating: 22] Favorites ----------- Power Deuterium Engine Engine Deuterium Engine Propulsion Light Treads Treads Light Treads Utility Large Storage Unit Device Heat Sink Storage Large Storage Unit Protection Light Armor Plating Weapon Improved Medium Laser Energy Gun Improved Medium Laser Energy Cannon Advanced Beam Cannon Ballistic Gun Light Assault Rifle Launcher YI-UF0's Doublenader Special Melee Weapon Improved Datajack Build | -11 -10 -10 -9 -9 -9 -8 ------- Run | Scr Mat Min Mat Min Exi Min Slots Evolved 2 | . . . 2 . . . Power . | . . . . . . . Propulsion 1 | . . . 1 . . . Utility 1 | . . . 1 . . . Weapon . | . . . . . . . Parts Attached 61 | 7 5 3 34 5 5 2 Power 7 | 1 1 1 4 . . . Engine 7 | 1 1 1 4 . . . Core . | . . . . . . . Reactor . | . . . . . . . Propulsion 17 | 2 1 . 10 3 1 . Treads 17 | 2 1 . 10 3 1 . Leg . | . . . . . . . Wheel . | . . . . . . . Hover . | . . . . . . . Flight . | . . . . . . . Utility 12 | 2 1 . 8 . 1 . Device 4 | 1 . . 3 . . . Storage 6 | 1 1 . 3 . 1 . Processor . | . . . . . . . Hackware . | . . . . . . . Protection 2 | . . . 2 . . . Artifact . | . . . . . . . Weapon 25 | 2 2 2 12 2 3 2 Energy Gun 6 | 1 1 . 4 . . . Energy Cannon 9 | . . . 5 2 1 1 Ballistic Gun 6 | 1 1 2 2 . . . Ballistic Cannon . | . . . . . . . Launcher 3 | . . . 1 . 1 1 Special Weapon . | . . . . . . . Impact Weapon . | . . . . . . . Slashing Weapon . | . . . . . . . Piercing Weapon . | . . . . . . . Special Melee Weapon 1 | . . . . . 1 . Unidentified Prototypes 3 | . . . 2 . 1 . Parts Lost 22 | . 4 3 11 3 . 1 Power 1 | . . 1 . . . . Propulsion 8 | . 1 1 4 2 . . Utility 4 | . 1 . 3 . . . Weapon 9 | . 2 1 4 1 . 1 Highest Loss Streak 3 | . 2 2 2 3 . 1 Average Slot Usage (%) 91 | . 96 73 90 99 88 100 Engine 11 | . 13 14 10 11 11 11 Treads 30 | . 27 17 31 32 33 33 Device 9 | . 13 . 9 11 11 11 Storage 16 | . 14 14 13 22 22 22 Protection 1 | . . . 2 . . . Energy Gun 10 | . 19 3 11 11 . . Energy Cannon 5 | . . . 5 10 . . Ballistic Gun 4 | . 6 23 3 . . . Special Melee Weapon 1 | . . . . . 10 10 Naked Turns . | . . . . . . . Heaviest Build 68 | 14 26 23 51 49 63 68 Greatest Support 60 | 40 40 40 60 60 60 60 Greatest Overweight (x) 2 | . 1 1 1 2 1 1 Average Overweight (x) . | . . . . . . 1 Largest Inventory Capacity 18 | 6 10 10 18 16 18 18 Average Capacity 13 | 5 9 10 12 16 16 18 Most Carried 18 | 4 7 7 16 14 18 17 Average Carried 10 | 2 5 4 10 13 16 17 Final Capacity 18 | 6 10 10 16 16 18 18 Final Carried 18 | 3 5 4 14 14 18 17 Class Distribution -------------------- 76% | Scavenger-Mutant 23% | Mutant Dominant Class ---------------- Mutant | -10/Materials Mutant | -10/Mines Scavenger-Mutant | -9/Materials Scavenger-Mutant | -9/Mines Scavenger-Mutant | -9/Exiles Scavenger-Mutant | -8/Mines Resources | -11 -10 -10 -9 -9 -9 -8 ----------- Run | Scr Mat Min Mat Min Exi Min Matter Collected 1228 | 276 85 28 666 97 . 76 Remotely 245 | 165 80 . . . . . Salvage Created 3135 | 99 346 77 2013 386 . 214 Parts 181 | 3 27 10 116 18 . 7 Haulers Intercepted 7 | . 1 . 6 . . . Recyclers Shooed 2 | . 1 1 . . . . Parts Field Recycled . | . . . . . . . Retrieved Matter . | . . . . . . . Parts Self-Destructed . | . . . . . . . Prevented . | . . . . . . . Kills | -11 -10 -10 -9 -9 -9 -8 ------- Run | Scr Mat Min Mat Min Exi Min Combat Hostiles Destroyed 65 | . 10 5 37 6 . 7 Melee 1 | . . . 1 . . . Guns 43 | . 10 5 22 6 . . Cannons 9 | . . . 7 . . 2 AOE 11 | . . . 6 . . 5 Classes Destroyed 12 | 2 4 . 6 . . . Worker 3 | . . . 2 1 . . Tunneler 2 | 1 . . . 1 . . Hauler 7 | . 1 . 6 . . . Recycler 3 | 1 . . 1 1 . . Operator 6 | . 2 . 4 . . . Swarmer 21 | . 6 5 6 4 . . Grunt 27 | . 4 . 16 1 . 6 Brawler 4 | . . . 3 . . 1 Duelist 2 | . . . 1 1 . . Protector 1 | . . . 1 . . . Sentry 10 | . . . 10 . . . Zionite 1 | . . . 1 . . . Best Kill Streak 8 | 2 5 3 8 5 . 4 Combat Bots Only 5 | . 5 3 5 4 . 4 Max Kills in Single Turn 5 | 1 1 1 5 1 . 1 Gunslinging 1 | . . . 1 . . . Exploded 4 | . . . 4 . . 1 Melee 1 | . . . 1 . . . Uniques/NPCs Destroyed 1 | . . . . 1 . . YI-UF0 (-9/Mines) Combat | -11 -10 -10 -9 -9 -9 -8 -------- Run | Scr Mat Min Mat Min Exi Min Damage Taken 3254 | . 584 243 1787 369 . 271 Core 544 | . 101 36 246 67 . 94 Absorbed by Shields . | . . . . . . . Core Remaining (%) 72 | 100 . 45 . . . . Volleys Fired 221 | 3 39 18 120 27 . 14 Largest 2 | 2 2 2 2 2 . 1 Hottest 136 | 60 80 60 136 124 . 70 Shots Fired 400 | 6 72 29 229 49 . 15 Gun 302 | 6 72 29 167 28 . . Cannon 85 | . . . 60 21 . 4 Launcher 13 | . . . 2 . . 11 Special . | . . . . . . . Kinetic 122 | 3 14 20 85 . . . Thermal 187 | . 23 9 102 49 . 4 Explosive 13 | . . . 2 . . 11 Electromagnetic 78 | 3 35 . 40 . . . Robot Hit Streak 34 | 3 7 7 34 19 . 8 Robot Miss Streak 5 | 2 5 4 4 2 . 3 Penetration Max . | . . . . . . . Secondary Targets 6 | . 3 1 2 . . . Max Gunslinging Chain 1 | . 1 1 1 . . . Shots Hit Robots 263 | 4 37 16 157 35 3 11 Core Hits 148 | 3 22 8 75 14 . 26 Critical Hits 5 | . . . 2 2 . 1 Critical Kills 2 | . . . . 1 . 1 Critical Parts Destroyed 3 | . . . 2 1 . . Melee Attacks 3 | . . . . . 3 . Impact . | . . . . . . . Slashing . | . . . . . . . Piercing . | . . . . . . . Sneak Attacks 3 | . . . . . 3 . Combat Hostiles . | . . . . . . . Follow-up Attacks . | . . . . . . . Damage Inflicted 5335 | 68 555 156 3128 648 . 780 Guns 2708 | 68 516 153 1548 423 . . Cannons 1282 | . . . 974 225 . 83 Explosions 1261 | . 28 . 536 . . 697 Melee . | . . . . . . . Ramming 84 | . 11 3 70 . . . Kinetic 878 | 25 73 98 682 . . . Thermal 2168 | . 174 55 1208 648 . 83 Explosive 1119 | . . . 422 . . 697 Electromagnetic 1086 | 43 297 . 746 . . . Impact . | . . . . . . . Slashing . | . . . . . . . Piercing . | . . . . . . . Highest Corruption 5 | . . . 5 5 5 5 Average Corruption 4 | . . . 3 5 5 5 Corruption Purged . | . . . . . . . Effects 85 | . . . 40 34 5 6 Message Errors 18 | . . . 10 6 2 . Matter Fused 19 | . . . 11 8 . . Heat Flow Errors 9 | . . . 2 5 1 1 Energy Discharges 13 | . . . 6 4 . 3 Parts Rejected 1 | . . . 1 . . . Data Loss (minor) 12 | . . . 7 2 2 1 Data Loss (major) 3 | . . . . 3 . . Misfires 2 | . . . . 1 . 1 Targeting Errors 7 | . . . 3 4 . . Weapon Failures 1 | . . . . 1 . . Overload Shots . | . . . . . . . Overflow Damage 36 | . . . 36 . . . Projectiles 25 | . . . 25 . . . Explosions 11 | . . . 11 . . . Melee . | . . . . . . . Knockbacks 1 | . . . 1 . . . Impact 1 | . . . 1 . . . Kinetic . | . . . . . . . Secondary . | . . . . . . . Self-Inflicted Damage 118 | . . . 68 . . 50 Shots 5 | . . . 2 . . 3 Rammed 12 | . 3 1 8 . . . Targets Rammed 13 | . 3 1 9 . . . Kicked . | . . . . . . . Crushed 1 | . . . 1 . . . Highest Temperature 408 | . 204 20 408 227 107 200 Average Temperature 67 | . 64 12 81 47 62 38 Received Heat Transfer 1005 | . 234 36 540 78 . 117 Effects 5 | . . . 5 . . . Interference 1 | . . . 1 . . . Matter Decay 2 | . . . 2 . . . Short Circuit 1 | . . . 1 . . . Damage (minor) 1 | . . . 1 . . . Siege Activations . | . . . . . . . Robots Corrupted 1 | . . . 1 . . . Combat Hostiles 1 | . . . 1 . . . Parts Fried 8 | . 5 . 3 . . . Impact Corruptions . | . . . . . . . Robots Melted . | . . . . . . . Combat Hostiles . | . . . . . . . Parts Melted 7 | . . . 5 2 . . Heat Transferred 4424 | . 375 125 2444 1332 . 148 Parts Sabotaged . | . . . . . . . Parts Stolen . | . . . . . . . Parts Stripped . | . . . . . . . Power Chain Reactions 3 | . 1 . 2 . . . Missiles Intercepted . | . . . . . . . Alert | -11 -10 -10 -9 -9 -9 -8 ------- Run | Scr Mat Min Mat Min Exi Min Peak Influence 918 | 10 217 276 918 472 . 231 Initial 357 | . 6 24 29 357 . . Average 342 | 6 92 136 546 257 . 120 Maximum Alert Level 3 | . 1 1 3 2 . 1 Low Security (%) 37 | 100 76 64 10 39 . 96 Level 1 28 | . 23 35 19 47 . 3 Level 2 19 | . . . 36 12 . . Level 3 14 | . . . 32 . . . Level 4 . | . . . . . . . Level 5 . | . . . . . . . High Security . | . . . . . . . Max Security . | . . . . . . . Squads Dispatched 11 | . 3 . 8 . . . Investigation 4 | . 1 . 3 . . . Extermination . | . . . . . . . Reinforcement 6 | . 2 . 4 . . . Assault 1 | . . . 1 . . . Garrison . | . . . . . . . Intercept . | . . . . . . . Construction Impeded . | . . . . . . . Haulers Reinforced . | . . . . . . . Stealth | -11 -10 -10 -9 -9 -9 -8 --------- Run | Scr Mat Min Mat Min Exi Min Distress Signals 14 | . 1 . 13 . . . Communications Jammed . | . . . . . . . Distress Signals . | . . . . . . . Times Spotted 131 | . 23 11 82 6 . 9 Peak Tracking Total 7 | . 5 3 7 4 . 3 Tactical Retreats 14 | . . . 14 . . . Traps | -11 -10 -10 -9 -9 -9 -8 ------- Run | Scr Mat Min Mat Min Exi Min Traps Triggered 7 | . 3 . 4 . . . Indirectly . | . . . . . . . Trap Hack Attempts . | . . . . . . . Triggered . | . . . . . . . Disarmed . | . . . . . . . Reprogrammed . | . . . . . . . Reused . | . . . . . . . Traps Extracted . | . . . . . . . Installed . | . . . . . . . Triggered 1 | . . . 1 . . . Machines | -11 -10 -10 -9 -9 -9 -8 ---------- Run | Scr Mat Min Mat Min Exi Min Machines Disabled 5 | . 1 . 2 1 . 1 Max in Single Turn 1 | . 1 . 1 1 . 1 Machines Sabotaged . | . . . . . . . Garrisons Compromised . | . . . . . . . Overloaded Fab Kills . | . . . . . . . Fab Network Shutdowns . | . . . . . . . Hacking | -11 -10 -10 -9 -9 -9 -8 --------- Run | Scr Mat Min Mat Min Exi Min Machines Accessed 10 | . 2 1 5 . 2 . Terminals 6 | . 2 1 3 . . . Fabricators . | . . . . . . . Repair Stations . | . . . . . . . Recycling Units . | . . . . . . . Scanalyzers 2 | . . . 2 . . . Garrison Access . | . . . . . . . Total Hacks 36 | . 6 2 24 . 4 . Successful 26 | . 3 1 18 . 4 . Failed 10 | . 3 1 6 . . . Catastrophic 1 | . 1 . . . . . Database Lockouts . | . . . . . . . Manual 24 | . 6 2 15 . 1 . Terminals 24 | . 6 2 16 . . . Fabricators . | . . . . . . . Repair Stations . | . . . . . . . Recycling Units . | . . . . . . . Scanalyzers 8 | . . . 8 . . . Garrison Access . | . . . . . . . Terminal Hacks 11 | . . 1 6 . 4 . Record 3 | . . . . . 3 . Robot Schematic 1 | . . . 1 . . . Robot Analysis 1 | . . 1 . . . . Branch Access Points 1 | . . . 1 . . . Scanalyzer Index 1 | . . . 1 . . . Hauler Manifests 2 | . . . 2 . . . Zone Layout 1 | . . . 1 . . . EX-Prototype ID Bank 1 | . . . . . 1 . Fabricator Hacks . | . . . . . . . Repair Station Hacks . | . . . . . . . Recycling Unit Hacks . | . . . . . . . Scanalyzer 6 | . . . 6 . . . Insert Component 3 | . . . 3 . . . Analyze 3 | . . . 3 . . . Garrison Access Hacks . | . . . . . . . Unauthorized Hacks 9 | . 3 . 6 . . . Terminals 7 | . 3 . 4 . . . Track 1 | . . . 1 . . . Botnet 4 | . 2 . 2 . . . Operators 2 | . 1 . 1 . . . Fabricators . | . . . . . . . Repair Stations . | . . . . . . . Recycling Units . | . . . . . . . Scanalyzers 2 | . . . 2 . . . Extract 2 | . . . 2 . . . Garrison Access . | . . . . . . . Data Cores Recovered . | . . . . . . . Used . | . . . . . . . Hacking Detections 8 | . 2 1 5 . . . Full Trace Events . | . . . . . . . Feedback Events . | . . . . . . . Feedback Blocked . | . . . . . . . Robot Schematics Acquired 1 | . . . 1 . . . Robots Built . | . . . . . . . Matter . | . . . . . . . Time . | . . . . . . . Total Robot Build Rating . | . . . . . . . Part Schematics Acquired 15 | . . . 15 . . . Parts Built . | . . . . . . . Matter . | . . . . . . . Time . | . . . . . . . Total Part Build Rating . | . . . . . . . Parts Repaired . | . . . . . . . Time . | . . . . . . . Parts Recycled . | . . . . . . . Recycled Matter . | . . . . . . . Retrieved Matter . | . . . . . . . Retrieved Components . | . . . . . . . Parts Scanalyzed 3 | . . . 3 . . . Part Schematics Acquired 3 | . . . 3 . . . Parts Damaged . | . . . . . . . Bothacking | -11 -10 -10 -9 -9 -9 -8 ------------ Run | Scr Mat Min Mat Min Exi Min Used RIF Installer . | . . . . . . . Robots Hacked 3 | . . . . . 3 . Non-combat 2 | . . . . . 2 . Combat 1 | . . . . . 1 . Robot Hacks Applied 3 | . . . . . 3 . parse_system 3 | . . . . . 3 . Relay Couplers Released . | . . . . . . . Robots Rewired . | . . . . . . . Allies Hacked . | . . . . . . . Hacks Repelled . | . . . . . . . Allies | -11 -10 -10 -9 -9 -9 -8 -------- Run | Scr Mat Min Mat Min Exi Min Total Allies 2 | . . 2 . . . . Largest Group 2 | . . 2 2 . . . Highest-Rated Group 41 | . . 41 41 . . . Highest-Rated Ally 31 | . . 31 31 . . . Total Orders . | . . . . . . . Ally Attacks 24 | . . 13 11 . . . Total Damage 441 | . . 209 232 . . . Kills 8 | . . 6 2 . . . Allies Corrupted . | . . . . . . . Allies Melted . | . . . . . . . Intel | -11 -10 -10 -9 -9 -9 -8 ------- Run | Scr Mat Min Mat Min Exi Min Robot Analysis Total 1 | . . 1 . . . . Derelict Logs Recovered 5 | . . 2 . 3 . . Drone Launches . | . . . . . . . Drone Recoveries . | . . . . . . . Exploration | -11 -10 -10 -9 -9 -9 -8 ------------- Run | Scr Mat Min Mat Min Exi Min Turns Passed 5374 | 111 546 541 2234 1319 375 248 Spaces Moved 2827 | 61 259 281 1111 769 225 121 Core 10 | 10 . . . . . . Treads 2817 | 51 259 281 1111 769 225 121 Legs . | . . . . . . . Wheels . | . . . . . . . Hover . | . . . . . . . Flight . | . . . . . . . Fastest Speed 50 | 50 160 160 160 160 160 180 Average Speed 162 | 141 160 175 160 160 160 180 Slowest Speed 200 | 160 180 180 180 200 180 180 Overloaded Moves . | . . . . . . . Propulsion Burnouts . | . . . . . . . Robots Hopped . | . . . . . . . Cave-ins Triggered . | . . . . . . . Exploration Rate (%) 58 | 6 46 79 79 99 59 40 Regions Visited 6 Branch Regions 4 Pre-discovered Areas 4 | . . 1 . 2 1 . Known Exits Taken 1 | . . . 1 . . . Unknown Exits Taken 5 | 1 1 1 . 1 1 . Scrap Searched 3 | . . . . 3 . . Spaces Dug . | . . . . . . . Terrain Destroyed 132 | . 3 . 21 . . 108 Melee . | . . . . . . . Projectile . | . . . . . . . AOE 131 | . 3 . 20 . . 108 Terrain Rammed 1 | . . . 1 . . . Walls Destroyed 1 | . . . 1 . . . Machines Disabled . | . . . . . . . Actions | -11 -10 -10 -9 -9 -9 -8 --------- Run | Scr Mat Min Mat Min Exi Min Total 3220 | 79 317 304 1336 808 239 137 Wait 16 | . . . 13 3 . . Move 2821 | 60 258 280 1110 768 224 121 Hop . | . . . . . . . Pick Up 61 | 9 9 2 34 5 2 . Fast Attach 5 | 1 . . 4 . . . Attach 46 | 6 4 3 23 5 4 1 Detach 6 | . . . 2 . 4 . Swap 10 | . 1 . 7 . 1 1 Drop 17 | . 3 . 13 . 1 . Fire 221 | 3 39 18 120 27 . 14 Melee 3 | . . . . . 3 . Ram 1 | . . . 1 . . . Kick . | . . . . . . . Crush 13 | . 3 1 9 . . . Escape Stasis . | . . . . . . . Rewire . | . . . . . . . Trap . | . . . . . . . Miscellaneous . | . . . . . . . Route ------- -11/Scrapyard -10/Materials (discovered 2 exits: *Mat / *Min) -10/Mines (discovered 2 exits: *Mat x2) -9/Materials (discovered 4 exits: [*Mat x2] / *Min x2) -9/Mines (discovered 3 exits: [*Mat x2] / *Exi) -9/Exiles -8/Mines History --------- Turn | Location | Event 24 | -11/Scrapyard | Discovered new exit (range 15) 112 | -11/Scrapyard | Entered Materials 235 | -10/Materials | Discovered new exit (range 16) 315 | -10/Materials | Build established: Mutant 330 | -10/Materials | Discovered new exit (range 16) 658 | -10/Materials | Entered Mines 854 | -10/Mines | Learned location of Storage (-7) 871 | -10/Mines | Learned Materials garrison access intel 1028 | -10/Mines | Discovered new exit (range 9) 1044 | -10/Mines | Core integrity fell below 50% 1143 | -10/Mines | Discovered new exit (range 10) 1199 | -10/Mines | Entered Materials 1199 | -9/Materials | Accompanied by 2 allies 1199 | -9/Materials | Evolved 2 slots: Propulsion x1, Utility x1 1204 | -9/Materials | Led the pair of lost Derelicts to an unsafe place 1531 | -9/Materials | Discovered new exit (range 13) 1575 | -9/Materials | Build established: Scavenger-Mutant 1812 | -9/Materials | Discovered new exit (range 16) 1960 | -9/Materials | Discovered new exit (range 13) 2291 | -9/Materials | Discovered new exit (range 15) 2799 | -9/Materials | First assault squad dispatched 2916 | -9/Materials | Core integrity fell below 50% 3021 | -9/Materials | Identified exit to Mines 3433 | -9/Materials | Entered Mines 3488 | -9/Mines | Lost 3 parts (2n1w) 3506 | -9/Mines | Learned location of Zion (-6) 3887 | -9/Mines | Discovered new exit (range 10) 3890 | -9/Mines | Learned 2 Materials zone layouts 4010 | -9/Mines | Discovered new exit (range 14) 4104 | -9/Mines | YI-UF0 nonchalantly dropped a Grenade Launcher on the ground 4176 | -9/Mines | Destroyed YI-UF0 4187 | -9/Mines | Found Prototype Launcher 4746 | -9/Mines | Deemed a non-threat by the Exiles lab entrance 4746 | -9/Mines | Discovered new exit (range 5) 4752 | -9/Mines | Entered Exiles 4794 | -9/Exiles | Met 8R-AWN 4809 | -9/Exiles | Identified YI-UF0's Doublenader 4825 | -9/Exiles | Met EX-HEX 4873 | -9/Exiles | Met EX-BIN 4904 | -9/Exiles | Aligned with FarCom system 4906 | -9/Exiles | Given EX-Vault access code 4943 | -9/Exiles | Opened EX-Vault 4957 | -9/Exiles | Found YOLO Cannon 4972 | -9/Exiles | Found Firepult 5010 | -9/Exiles | Warned to stay clear of 0b10 Research branches 5053 | -9/Exiles | Met EX-DEC 5111 | -9/Exiles | Discovered new exit (range 10) 5127 | -9/Exiles | Stole two prototypes: YOLO Cannon, Firepult 5127 | -9/Exiles | Entered Mines 5350 | -8/Mines | Core integrity fell below 20% 5375 | -8/Mines | Destroyed by G-50 Soldier with Heavy Laser Last Messages --------------- 05298_ K-01 Serf cleans the Core Extractor. 05304_ K-01 Serf collects debris. 05315_ System corrupted: Energy discharge (-82). 05349_ G-50 Soldier destroyed. 05350_ The unstable cave ceiling collapses. 05353_ G-47 Trooper suffers critical hit. 05353_ G-47 Trooper destroyed. 05354_ The unstable cave ceiling collapses. 05354_ Particle Gun crushed. 05358_ System corrupted: Component data lost. 05358_ Acquired 31 matter. 05361_ The unstable cave ceiling collapses. 05366_ G-47 Trooper destroyed. 05368_ Acquired 41 matter. 05370_ Adv. Beam Cannon destroyed. 05371_ U-05 Engineer lays Concrete. 05372_ G-47 Trooper destroyed. 05373_ U-05 Engineer lays Concrete. 05375_ The unstable cave ceiling collapses. 05375_ U-05 Engineer builds a Wall. Map ----- +----------------------------------------------------+ | ???????????????????????????????????????????? | | ???????????????????????????????????????????? | | ???????????????????????????????????????????? | | ???????????????????????????????????????????? | | ???????????????????????????????????????????? | | ???????????????????????????? ??###????????? | | ???????????????????????????# ?## ###?????? | | ??????????????????????????? ?# ##????? | | ???????????????????????????# ## ##???? | | ???????????????????????????# #?# ##??? | | ???????????????????????????# #??# ##?? | | ??????g????????????????????# #??# #?? | | ??????????????????????????## #??# ### | | ???????????????????????#### #??# | | ???????????????????????? #??# """ | | ?????????????????????????# ##?## """ | | ???????????????????????#### #??# """ | | ?????????????????????? ##?# # | | ?????????????????????? #?## ##### | | ????????????????????## ##### #???? | | ????????????????##??# gg #???? | | ????????????????# ### #### ##### | | ???????????????## = ##??# | | ???????????????# #####???# ##### | | ???????????????# = #???????????# #???? | | ???????????????# *@ # #??????????# #???? | | ???????????????# # #??????????# #???? | | ???????????????### ##?????????## #???? | | ????????????????#u ####?????????## ##??? | | ???????????????? ###???????????## ###? | | ??????????????? #??????????????# ## | | ?????????????? #???????????????# # | | ?????????????####????????????????## # | | ??????????????????????????????????##### | | ???????????????????????????????????#### | | ???????????????????????????????# | | ???????????????????????????????# | | ???????????????????????????????## | | ????????????????????????????????#### | | ???????????????????????????????????## ## | | ????????????????????????????????????###?## | | ?????????????????????????????????????????# | | ?????????????????????????????????????????# | | ?????????????????????????????????????????# | | ?????????????????????????????????????????## | | ??????????????????????????????????????????## | | ???????????????????????????????????????????? | | ???????????????????????????????????????????? | | ???????????????????????????????????????????? | | | +----------------------------------------------------+ Best States ------------- Heat Dissipation 52 Energy Generation 14 Energy Capacity 275 Matter Stores 300 Matter Capacity 300 Sight Range 16 Terrain Scan Density 10 Armor Coverage 150 Evasion (%) 50 Recoil Reduction 3 Item Schematics ----------------- Power Amplifier | -9/Materials | Scanalyzed Reclamation Unit | -9/Materials | Extracted Autogun | -9/Materials | Extracted Rocket Launcher | -9/Materials | Extracted Imp. Datajack | -9/Materials | Scanalyzed Imp. Medium Laser | -9/Materials | Scanalyzed Particle Cannon | -9/Materials | Extracted Lrg. Battery | -9/Materials | Extracted Signal Interpreter | -9/Materials | Extracted Mni. Grenade Launcher | -9/Materials | Extracted Datajack | -9/Materials | Extracted Field Recycling Unit | -9/Materials | Extracted Imp. Targeting Computer | -9/Materials | Extracted Tractor Beam | -9/Materials | Extracted Targeting Computer | -9/Materials | Extracted Robot Schematics ------------------ O-16 Technician | -9/Materials | Hacked Fabricated ------------ Nothing Alien Tech Used ----------------- None Achievements -------------- None Challenges ------------ None Game ------ Seed ShieldSeismicRifle Manual? 0 Play Time 00:26:35 Cumulative 631.9 hours Start 2021.11.07 @ 17:22:11 End 2021.11.07 @ 17:48:07 Sessions 1 Manual Loads 0 Difficulty Rogue Special Mode None Game No. 642 Rogue 601 Adventurer 41 Explorer 0 Win Type - Total 30 Types 23/0/6/0/0/0/0/1/0 Lore% 91 Gallery% 93 Achievement% 78 Wizard Run 0 Options --------- ASCII 0 Keyboard 0 Movement Mouse Keybinds 0 Fullscreen 1 Font 18/Terminus Map View 76x50 Tactical HUD 1 Map Filters NONE Filters NONE Steam 1 RUN: 0570f808-d4fb-4215-9bef-452c13217106